fUSD/lending_fUSD_20260313
["ID","MTS","AMOUNT","RATE_DAILY","PERIOD"]
[408294728,1773370233041,-500.0,0.00013783,2]
[408294729,1773370233050,-500.0,0.00013783,2]
[408294730,1773370233060,-500.0,0.00013838,2]
[408294731,1773370233070,-151.0,0.00013838,2]
[408294732,1773370233079,-500.71717523,0.00013877,2]
[408294733,1773370233089,-1000.0,0.00013877,2]
[408294734,1773370233098,-503.3456058,0.00013877,2]
[408294735,1773370233107,-500.0,0.00013893,2]
[408294736,1773370233116,-151.0,0.00013893,2]
[408294737,1773370233126,-13093.57517167,0.00013903,2]
[408294738,1773370233135,-255.0,0.00013912,2]
[408294739,1773370233144,-500.0,0.00013948,2]
[408294740,1773370233153,-157.20679509,0.00013948,2]
[408294741,1773370233163,-1981.58764363,0.00014,2]
[408294742,1773370233173,-35165.25998872,0.00014,2]
[408294748,1773370238121,-276.91695225,0.00013425,2]
[408294749,1773370238132,-2963.08304775,0.00013425,2]
[408294750,1773370238141,-39307.1733365,0.00014,2]
[408294751,1773370238151,-500.0,0.00014003,2]
[408294752,1773370238160,-4000.0,0.00014044,2]
[408294753,1773370238170,-504.92385249,0.00014057,2]
[408294754,1773370238179,-500.0,0.00014058,2]
[408294755,1773370238188,-2500.0,0.00014089,2]
[408294756,1773370238197,-500.0,0.00014113,2]
[408294757,1773370238207,-652.67903961,0.00014123,2]
[408294758,1773370238220,-6395.5441847,0.00014127,2]
[408294759,1773370238229,-500.0,0.00014168,2]
[408294760,1773370238238,-500.0,0.00014173,2]
[408294761,1773370238247,-500.0,0.00014173,2]
[408294762,1773370238256,-500.5378047,0.00014173,2]
[408294763,1773370238265,-500.0,0.00014173,2]
[408294764,1773370238275,-500.50132648,0.00014173,2]
[408294765,1773370238284,-502.08297344,0.00014173,2]
[408294766,1773370238294,-500.0,0.00014173,2]
[408294767,1773370238303,-503.6750733,0.00014173,2]
[408294768,1773370238312,-190.65985841,0.0001418,2]
[408294769,1773370238322,-666.0,0.00014189,2]
[408294770,1773370238331,-151.0,0.0001419,2]
[408294771,1773370238340,-151.0,0.0001419,2]
[408294772,1773370238349,-277329.67785356,0.0001419,2]
[408294773,1773370238364,-1525.83657622,0.0001419,2]
[408294774,1773370238375,-3600.74371877,0.0001419,2]
[408294775,1773370238386,-3361.08370047,0.0001419,2]
[408294776,1773370238397,-2035.57860048,0.0001419,2]
[408294777,1773370238408,-3792.967829,0.0001419,2]
[408294778,1773370238423,-32516.22655802,0.0001419,2]
[408294779,1773370238434,-1549.25528038,0.0001419,2]
[408294781,1773370238445,-4159.4,0.0001419,2]
[408294799,1773370243096,-6682.32728717,0.0001419,2]
[408294800,1773370243108,-503.0,0.0001419,2]
[408294801,1773370243151,-97816.54444391,0.0001419,2]
[408294802,1773370243163,-1354773.0309031,0.0001419,2]
[408294803,1773370243258,-713.11239565,0.0001419,2]
[408294804,1773370243365,-466.789003,0.0001419,2]
[408294806,1773370246034,-2500.0,0.00014089,2]
[408294807,1773370246043,-12094.71531061,0.0001419,2]
[408294808,1773370246056,-527990.66792492,0.0001419,2]
[408294813,1773370305636,-1112.88,0.0001339,2]
[408294814,1773370336682,500.0,8.6e-05,2]
[408294815,1773370343216,794.13583413,8.6e-05,2]
[408294816,1773370344178,500.0,8.6e-05,2]
[408294817,1773370446393,10000.01,0.00013315,2]
[408294818,1773370446416,10000.01,0.00013315,2]
[408294819,1773370446438,10000.01,0.00013315,2]
[408294820,1773370446459,10000.01,0.00013315,2]
[408294821,1773370446482,10000.01,0.00013315,2]
[408294822,1773370446504,10000.01,0.00013315,2]
[408294823,1773370446528,3205.87416587,0.00013315,2]
[408294824,1773370446552,4074.90583413,0.00013315,2]
[408294825,1773370504262,10000.01,0.00013432,2]
[408294826,1773370504284,3959.767039,0.00013432,2]
[408294827,1773370504955,3234.0,0.000134,5]
[408294828,1773370506811,165.0,0.00013496,2]
[408294829,1773370506852,157.0,0.00013496,2]
[408294830,1773370568027,2626.000361,7.945e-05,2]
[408294831,1773370597168,2374.009639,0.000133,5]
[408294832,1773370597188,3158.990361,0.000133,5]
[408294833,1773370637847,500.0,8.6e-05,2]
[408294834,1773370638347,546.43909998,8.6e-05,2]
[408294835,1773370638412,-313.898209,0.00013564,2]
[408294836,1773370638445,-500.0,0.00013783,2]
[408294837,1773370638469,-1200.0,0.00013801,2]
[408294838,1773370638492,-1200.0,0.00013802,2]
[408294839,1773370638514,-300.0,0.00013802,2]
[408294840,1773370638537,-300.0,0.00013802,2]
[408294841,1773370638558,-300.0,0.00013802,2]
[408294842,1773370638579,-300.0,0.00013802,2]
[408294843,1773370638603,-2398.084491,0.00013803,2]
[408294844,1773370640794,-813.898209,0.00013803,2]
[408294845,1773370640817,-500.0,0.00013838,2]
[408294846,1773370640837,-500.0,0.00013893,2]
[408294847,1773370646013,705.24930331,8.6e-05,2]
[408294848,1773370648247,895.65506872,8.6e-05,2]
[408294849,1773370651515,-500.0,0.00013948,2]
[408294850,1773370651542,-500.0,0.00014003,2]
[408294851,1773370651568,-500.0,0.00014058,2]
[408294852,1773370651604,-150.0,0.00014089,2]
[408294853,1773370651631,-1002.56202872,0.00014089,2]
[408294854,1773370651659,-2194.88594256,0.0001409,2]
[408294855,1773370652206,643.20047838,8.6e-05,2]
[408294856,1773370656572,-305.11405744,0.0001409,2]
[408294857,1773370656596,-4694.88594256,0.0001409,2]
[408294858,1773370657434,-5000.0,0.0001409,2]
[408294859,1773370658624,-5000.0,0.0001409,2]
[408294860,1773370660062,-5000.0,0.0001409,2]
[408294861,1773370661160,-5000.0,0.0001409,2]
[408294862,1773370662442,-5000.0,0.0001409,2]
[408294863,1773370663402,-5000.0,0.0001409,2]
[408294864,1773370664105,-5000.0,0.0001409,2]
[408294865,1773370665346,-5000.0,0.0001409,2]
[408294866,1773370666330,-5000.0,0.0001409,2]
[408294867,1773370733355,479.93,0.00013809,2]
[408294868,1773370734643,479.93,0.00013809,2]
[408294869,1773370735973,479.93,0.0001381,2]
[408294870,1773370740351,-750.16898456,0.0001399,2]
[408294871,1773370740372,-153.33864615,0.0001399,2]
[408294872,1773370740393,-371.4958,0.0001399,2]
[408294873,1773370740414,-600.48396711,0.00014001,2]
[408294874,1773370740435,-398.34668095,0.00014001,2]
[408294875,1773370740457,-1200.0,0.00014089,2]
[408294876,1773370740477,-300.0,0.00014089,2]
[408294877,1773370740498,-150.0,0.00014089,2]
[408294878,1773370740520,-1076.16592123,0.0001409,2]
[408294879,1773370741349,-685.21731575,0.00014001,2]
[408294880,1773370741372,-4314.78268425,0.0001409,2]
[408294881,1773370742566,-5000.0,0.0001409,2]
[408294882,1773370743771,-5000.0,0.0001409,2]
[408294883,1773370744608,-5000.0,0.0001409,2]
[408294884,1773370745417,-5000.0,0.0001409,2]
[408294885,1773370746192,-5000.0,0.0001409,2]
[408294886,1773370747090,-5000.0,0.0001409,2]
[408294887,1773370747965,-5000.0,0.0001409,2]
[408294888,1773370748794,-5000.0,0.0001409,2]
[408294889,1773370749759,-5000.0,0.0001409,2]
[408294890,1773370750793,-5000.0,0.0001409,2]
[408294891,1773370751730,-5000.0,0.0001409,2]
[408294892,1773370752576,-5000.0,0.0001409,2]
[408294893,1773370753392,-5000.0,0.0001409,2]
[408294894,1773370754175,-5000.0,0.0001409,2]
[408294895,1773370754679,-5000.0,0.0001409,2]
[408294896,1773370755317,-5000.0,0.0001409,2]
[408294897,1773370756131,-5000.0,0.0001409,2]
[408294898,1773370793757,1316.11514959,0.0001199,2]
[408294899,1773370793779,5000.01,0.0001199,2]
[408294900,1773370793800,5000.01,0.0001199,2]
[408294901,1773370793821,4998.084491,0.0001199,2]
[408294902,1773370793842,3203.3732142,0.0001199,2]
[408294903,1773370800671,5000.01,8e-05,2]
[408294904,1773370800692,5.48459091,8e-05,2]
[408294905,1773370806674,157.0,0.000139,2]
[408294906,1773370850150,187.97,0.00013526,2]
[408294907,1773370878507,158.687962,0.0001346,2]
[408294909,1773370892350,-300.0,0.00013989,2]
[408294910,1773370892372,-265.0,0.0001399,2]
[408294911,1773370892394,-4435.0,0.0001399,2]
[408294912,1773370893485,-4289.46852092,0.0001399,2]
[408294913,1773370893514,-710.53147908,0.0001399,2]
[408294914,1773370894414,-5000.0,0.0001399,2]
[408294915,1773370895233,-1803.6505693,0.0001399,2]
[408294916,1773370895255,-400.32264474,0.00014001,2]
[408294917,1773370895277,-265.56445398,0.00014001,2]
[408294918,1773370895303,-500.0,0.00014073,2]
[408294919,1773370895325,-178.87704855,0.0001408,2]
[408294920,1773370895346,-300.0,0.00014089,2]
[408294921,1773370895368,-300.0,0.00014089,2]
[408294922,1773370895397,-1200.0,0.00014089,2]
[408294923,1773370895419,-51.58528343,0.00014089,2]
[408294924,1773370896136,-98.41471657,0.00014089,2]
[408294925,1773370896159,-300.0,0.00014089,2]
[408294926,1773370896184,-500.0,0.00014089,2]
[408294927,1773370896209,-500.0,0.00014089,2]
[408294928,1773370896236,-500.0,0.00014089,2]
[408294929,1773370896271,-500.0,0.00014089,2]
[408294930,1773370896296,-500.0,0.00014089,2]
[408294931,1773370896319,-500.0,0.00014089,2]
[408294932,1773370896344,-500.0,0.00014089,2]
[408294933,1773370896368,-500.0,0.00014089,2]
[408294934,1773370896393,-500.0,0.00014089,2]
[408294935,1773370896416,-101.58528343,0.00014089,2]
[408294936,1773370896658,-398.41471657,0.00014089,2]
[408294937,1773370896685,-500.0,0.00014089,2]
[408294938,1773370896712,-500.0,0.00014089,2]
[408294939,1773370896740,-500.0,0.00014089,2]
[408294940,1773370896766,-500.0,0.00014089,2]
[408294941,1773370896789,-500.0,0.00014089,2]
[408294942,1773370896812,-500.0,0.00014089,2]
[408294943,1773370896845,-500.0,0.00014089,2]
[408294944,1773370896872,-500.0,0.00014089,2]
[408294945,1773370896896,-500.0,0.00014089,2]
[408294946,1773370896921,-101.58528343,0.00014089,2]
[408294947,1773370897607,-398.41471657,0.00014089,2]
[408294948,1773370897633,-500.0,0.00014089,2]
[408294949,1773370897660,-500.0,0.00014089,2]
[408294950,1773370897686,-500.0,0.00014089,2]
[408294951,1773370897712,-500.0,0.00014089,2]
[408294952,1773370897738,-500.0,0.00014089,2]
[408294953,1773370897762,-500.0,0.00014089,2]
[408294954,1773370897786,-500.0,0.00014089,2]
[408294955,1773370897810,-500.0,0.00014089,2]
[408294956,1773370897834,-500.0,0.00014089,2]
[408294957,1773370897858,-101.58528343,0.00014089,2]
[408294958,1773370898578,-398.41471657,0.00014089,2]
[408294959,1773370898602,-500.0,0.00014089,2]
[408294960,1773370898628,-500.0,0.00014089,2]
[408294961,1773370898658,-500.0,0.00014089,2]
[408294962,1773370898684,-500.0,0.00014089,2]
[408294963,1773370898711,-500.0,0.00014089,2]
[408294964,1773370898737,-500.0,0.00014089,2]
[408294965,1773370898766,-500.0,0.00014089,2]
[408294966,1773370898792,-500.0,0.00014089,2]
[408294967,1773370898817,-500.0,0.00014089,2]
[408294968,1773370898843,-101.58528343,0.00014089,2]
[408294969,1773370900618,-398.41471657,0.00014089,2]
[408294970,1773370900644,-500.0,0.00014089,2]
[408294971,1773370900676,-500.0,0.00014089,2]
[408294972,1773370900701,-500.0,0.00014089,2]
[408294973,1773370900726,-500.0,0.00014089,2]
[408294974,1773370900751,-500.0,0.00014089,2]
[408294975,1773370900777,-468.95238327,0.00014089,2]
[408294976,1773370900802,-500.0,0.00014089,2]
[408294977,1773370900826,-500.0,0.00014089,2]
[408294978,1773370900851,-500.0,0.00014089,2]
[408294979,1773370900875,-132.63290016,0.00014089,2]
[408294980,1773370901860,-367.36709984,0.00014089,2]
[408294981,1773370901885,-500.0,0.00014089,2]
[408294982,1773370901919,-500.0,0.00014089,2]
[408294983,1773370901942,-500.0,0.00014089,2]
[408294984,1773370901966,-500.0,0.00014089,2]
[408294985,1773370901990,-500.0,0.00014089,2]
[408294986,1773370902015,-500.0,0.00014089,2]
[408294987,1773370902039,-500.0,0.00014089,2]
[408294988,1773370902063,-500.0,0.00014089,2]
[408294989,1773370902087,-500.0,0.00014089,2]
[408294990,1773370902110,-132.63290016,0.00014089,2]
[408294991,1773370904112,-367.36709984,0.00014089,2]
[408294992,1773370904135,-500.0,0.00014089,2]
[408294993,1773370904160,-500.0,0.00014089,2]
[408294994,1773370904182,-313.92387934,0.00014089,2]
[408294995,1773370904203,-183.70646454,0.00014089,2]
[408294996,1773370904229,-500.0,0.00014089,2]
[408294997,1773370904256,-500.0,0.00014089,2]
[408294998,1773370904280,-500.0,0.00014089,2]
[408294999,1773370904305,-450.0,0.00014089,2]
[408295000,1773370904330,-500.0,0.00014089,2]
[408295001,1773370904355,-500.0,0.00014089,2]
[408295002,1773370904380,-185.00255628,0.00014089,2]
[408295003,1773370904978,-314.99744372,0.00014089,2]
[408295004,1773370905006,-500.0,0.00014089,2]
[408295005,1773370905032,-500.0,0.00014089,2]
[408295006,1773370905059,-500.0,0.00014089,2]
[408295007,1773370905080,-500.0,0.00014089,2]
[408295008,1773370905101,-500.0,0.00014089,2]
[408295009,1773370905122,-500.0,0.00014089,2]
[408295010,1773370905143,-500.0,0.00014089,2]
[408295011,1773370905164,-500.0,0.00014089,2]
[408295012,1773370905184,-415.50249717,0.00014089,2]
[408295013,1773370905206,-269.50005911,0.00014089,2]
[408295014,1773370926484,1000.0,0.000135,2]
[408295015,1773370928221,3179.4798,7.945e-05,2]
[408295016,1773370942564,473.872238,8.98e-05,2]
[408295017,1773370942588,38.32938512,8.98e-05,2]
[408295018,1773370942615,500.0,8.98e-05,2]
[408295019,1773370943084,500.0,8.98e-05,2]
[408295020,1773370943222,741.70361886,8.98e-05,2]
[408295021,1773370943897,500.0,8.98e-05,2]
[408295022,1773370944391,500.0,8.98e-05,2]
[408295023,1773370945081,500.0,8.98e-05,2]
[408295024,1773370945127,1969.94484806,0.0001,2]
[408295025,1773370945373,500.0,8.98e-05,2]
[408295026,1773370945596,500.0,8.98e-05,2]
[408295027,1773370946213,500.0,8.98e-05,2]
[408295028,1773370946683,522.47280844,8.98e-05,2]
[408295029,1773370947594,-2106.24507939,0.0001399,2]
[408295030,1773370947684,269.67767821,0.000107,2]
[408295031,1773370948887,612.85322587,8.98e-05,2]
[408295032,1773370950883,200.0,0.00013516,2]
[408295033,1773370954027,503.60577328,9.5e-05,3]
[408295034,1773370954052,6811.9827,9.5e-05,3]
[408295035,1773370954078,80862.69066055,9.5e-05,3]
[408295036,1773370954104,659620.80971493,9.5e-05,3]
[408295037,1773370954331,409411.57538092,9.5e-05,3]
[408295038,1773370955519,500.0,8.98e-05,2]
[408295039,1773370967494,500.0,0.00013848,2]
[408295040,1773370975388,187.41562322,0.0001389,2]
[408295041,1773370983807,200.0,0.000102,2]
[408295043,1773371107339,157.0,0.0001389,2]
[408295044,1773371120957,-187.41562322,0.0001394,2]
[408295045,1773371120986,-300.0,0.00013946,2]
[408295046,1773371121018,-600.0,0.00013952,2]
[408295047,1773371121047,-342.34757849,0.00013964,2]
[408295048,1773371121077,-600.0,0.00013975,2]
[408295049,1773371121107,-748.14085166,0.00013975,2]
[408295050,1773371121138,-1200.0,0.00013985,2]
[408295051,1773371121168,-300.0,0.00013985,2]
[408295052,1773371121202,-300.0,0.00013985,2]
[408295053,1773371130176,-9455.83851918,0.00013986,2]
[408295054,1773371167739,1735.664593,7.945e-05,2]
[408295055,1773371182961,2000.0,0.00013191,2]
[408295056,1773371227910,279.539355,0.00013385,2]
[408295057,1773371237527,785.45770305,8.896e-05,2]
[408295059,1773371238156,199.34834895,8.896e-05,2]
[408295060,1773371238180,300.65165105,8.896e-05,2]
[408295061,1773371238505,500.0,8.896e-05,2]
[408295062,1773371238633,500.0,8.896e-05,2]
[408295063,1773371239123,930.87302549,8.896e-05,2]
[408295064,1773371242116,500.0,8.896e-05,2]
[408295065,1773371244472,500.0,8.896e-05,2]
[408295066,1773371244841,500.0,8.896e-05,2]
[408295070,1773371278711,185.82268292,0.00013889,2]
[408295071,1773371284683,185.82268292,0.0001389,2]
[408295074,1773371338036,-300.0,0.00013985,2]
[408295075,1773371338081,-300.0,0.00013985,2]
[408295076,1773371338136,-300.0,0.00013985,2]
[408295077,1773371338172,-888.0,0.00013985,2]
[408295078,1773371338204,-250.0,0.00013985,2]
[408295079,1773371338318,-5924.01,0.00013986,2]
[408295080,1773371338331,-10000.01,0.00013986,2]
[408295081,1773371340915,-10000.01,0.00013986,2]
[408295082,1773371343920,-300.0,0.00013985,2]
[408295083,1773371343949,-159.0,0.00013985,2]
[408295084,1773371343978,-300.0,0.00013985,2]
[408295085,1773371344050,-8482.01,0.00013986,2]
[408295086,1773371393077,1626.25809695,0.00013885,2]
[408295087,1773371393380,479.9478825,0.00013865,2]
[408295088,1773371406958,158.0,0.00013896,2]
[408295089,1773371429784,203.12,0.00010496,2]
[408295098,1773371432204,-265.0,0.00013915,2]
[408295100,1773371432214,-604.72928149,0.00013915,2]
[408295103,1773371432226,-575.18243251,0.00013915,2]
[408295104,1773371432235,-358.11667338,0.00013986,2]
[408295105,1773371432312,-5039.33406917,0.00013986,2]
[408295106,1773371432322,-1200.0,0.00013986,2]
[408295107,1773371432331,-300.0,0.00013986,2]
[408295108,1773371432341,-300.0,0.00013986,2]
[408295109,1773371432350,-5117.86328773,0.00013987,2]
[408295110,1773371432360,-250.0,0.00013988,2]
[408295111,1773371432369,-150.0,0.00013989,2]
[408295112,1773371432378,-10661.053929,0.0001399,2]
[408295113,1773371432388,-500.0,0.0001399,2]
[408295114,1773371432397,-18436.70416766,0.0001399,2]
[408295115,1773371432407,-1404.16338626,0.0001399,2]
[408295116,1773371432416,-7523.89188444,0.0001399,2]
[408295118,1773371432425,-500.0,0.0001399,2]
[408295119,1773371432434,-355.48544738,0.0001399,2]
[408295121,1773371432444,-1000.0,0.0001399,2]
[408295124,1773371432454,-1355.159,0.0001399,2]
[408295125,1773371432463,-363.9842,0.0001399,2]
[408295127,1773371432473,-8541.6674,0.0001399,2]
[408295129,1773371432482,-1893.14148251,0.0001399,2]
[408295131,1773371432491,-1404.16338625,0.00013993,2]
[408295133,1773371432500,-215.59774674,0.00013995,2]
[408295135,1773371432511,-1404.16338625,0.00013995,2]
[408295137,1773371432520,-266.88176316,0.00013995,2]
[408295139,1773371432529,-177.04296932,0.00013995,2]
[408295141,1773371432539,-794.91234202,0.00013995,2]
[408295143,1773371432548,-299.99,0.00013996,2]
[408295145,1773371432557,-150.99,0.00013996,2]
[408295146,1773371432567,-1318.87,0.00013996,2]
[408295148,1773371432576,-9999.99,0.00013996,2]
[408295150,1773371432593,-3815.28,0.00013996,2]
[408295151,1773371432604,-9999.99,0.00013996,2]
[408295152,1773371432614,-10415.12,0.00013996,2]
[408295153,1773371432827,-999.99,0.00013996,2]
[408295154,1773371432837,-500.0,0.00014045,2]
[408295155,1773371432847,-501.08914824,0.00014073,2]
[408295156,1773371432857,-500.0,0.00014073,2]
[408295157,1773371432866,-501.74488631,0.00014073,2]
[408295158,1773371432879,-500.0,0.00014073,2]
[408295159,1773371432888,-500.0,0.00014073,2]
[408295160,1773371432897,-500.0,0.00014073,2]
[408295161,1773371432906,-229.80115972,0.0001408,2]
[408295162,1773371432916,-200.0,0.00014082,2]
[408295163,1773371432925,-500.0,0.00014082,2]
[408295164,1773371432935,-500.0,0.00014082,2]
[408295165,1773371432944,-500.0,0.00014082,2]
[408295166,1773371432954,-500.0,0.00014082,2]
[408295167,1773371432963,-500.0,0.00014082,2]
[408295168,1773371432973,-500.0,0.00014082,2]
[408295169,1773371432982,-500.0,0.00014082,2]
[408295170,1773371432991,-500.0,0.00014082,2]
[408295171,1773371433001,-500.0,0.00014082,2]
[408295172,1773371433010,-229.89616237,0.00014082,2]
[408295173,1773371433019,-151.0,0.00014082,2]
[408295174,1773371433029,-500.0,0.00014082,2]
[408295175,1773371433039,-151.0,0.00014082,2]
[408295176,1773371433048,-500.0,0.00014082,2]
[408295177,1773371433058,-151.0,0.00014082,2]
[408295178,1773371433067,-500.0,0.00014082,2]
[408295179,1773371433076,-151.0,0.00014082,2]
[408295180,1773371433086,-500.0,0.00014082,2]
[408295181,1773371433096,-151.0,0.00014082,2]
[408295182,1773371433105,-151.0,0.00014082,2]
[408295183,1773371433115,-151.0,0.00014082,2]
[408295184,1773371433124,-151.0,0.00014082,2]
[408295185,1773371433134,-151.0,0.00014082,2]
[408295186,1773371433143,-151.0,0.00014082,2]
[408295187,1773371433153,-164.19584395,0.00014082,2]
[408295188,1773371433162,-500.0,0.00014082,2]
[408295189,1773371433171,-500.0,0.00014082,2]
[408295190,1773371433180,-554.59699539,0.00014082,2]
[408295191,1773371433190,-1000.0,0.00014088,2]
[408295192,1773371433199,-500.0,0.00014089,2]
[408295193,1773371433208,-345.99667597,0.00014089,2]
[408295194,1773371433217,-230.49994089,0.00014089,2]
[408295195,1773371433227,-500.0,0.00014089,2]
[408295196,1773371433236,-500.0,0.00014089,2]
[408295197,1773371433246,-494.92864749,0.00014089,2]
[408295198,1773371433255,-500.0,0.00014089,2]
[408295199,1773371433264,-500.0,0.00014089,2]
[408295200,1773371433274,-292.60707229,0.00014089,2]
[408295201,1773371433283,-500.0,0.00014089,2]
[408295202,1773371433292,-500.0,0.00014089,2]
[408295203,1773371433301,-500.0,0.00014089,2]
[408295204,1773371433311,-500.0,0.00014089,2]
[408295205,1773371433320,-500.0,0.00014089,2]
[408295206,1773371433329,-500.0,0.00014089,2]
[408295207,1773371433338,-500.0,0.00014089,2]
[408295208,1773371433348,-500.0,0.00014089,2]
[408295209,1773371433356,-500.0,0.00014089,2]
[408295210,1773371433365,-622.27623994,0.00014089,2]
[408295211,1773371433374,-500.0,0.00014089,2]
[408295212,1773371433384,-541.89919725,0.00014089,2]
[408295213,1773371433393,-500.0,0.00014089,2]
[408295214,1773371433401,-344.54164349,0.00014089,2]
[408295215,1773371433410,-429.9297022,0.00014089,2]
[408295216,1773371433419,-500.0,0.00014089,2]
[408295217,1773371433428,-500.0,0.00014089,2]
[408295218,1773371433438,-500.0,0.00014089,2]
[408295219,1773371433447,-500.0,0.00014089,2]
[408295220,1773371433456,-500.0,0.00014089,2]
[408295221,1773371433465,-500.0,0.00014089,2]
[408295222,1773371433474,-500.0,0.00014089,2]
[408295223,1773371433483,-500.0,0.00014089,2]
[408295224,1773371433492,-500.0,0.00014089,2]
[408295225,1773371433501,-500.0,0.00014089,2]
[408295226,1773371433510,-500.0,0.00014089,2]
[408295227,1773371433520,-500.0,0.00014089,2]
[408295228,1773371433529,-500.0,0.00014089,2]
[408295229,1773371433538,-500.0,0.00014089,2]
[408295230,1773371433548,-500.0,0.00014089,2]
[408295231,1773371433557,-209.67487658,0.0001409,2]
[408295232,1773371433567,-317.93638194,0.0001409,2]
[408295233,1773371433576,-110188.19648856,0.0001409,2]
[408295234,1773371433589,-146296.38878341,0.0001409,2]
[408295235,1773371433600,-157108.78982143,0.0001409,2]
[408295236,1773371433612,-103949.9048319,0.0001409,2]
[408295237,1773371433623,-1319.98203148,0.0001409,2]
[408295238,1773371433661,-470.9133467,0.0001409,2]
[408295239,1773371433672,-1921.97847326,0.0001409,2]
[408295244,1773371438240,-151.0,0.0001409,2]
[408295245,1773371438250,-211.95758796,0.0001409,2]
[408295246,1773371438259,-1151.6984595,0.0001409,2]
[408295247,1773371438270,-1176.99203156,0.0001409,2]
[408295248,1773371438281,-1388.47540231,0.0001409,2]
[408295251,1773371439735,-15860.93782828,0.0001409,2]
[408295253,1773371440707,-211.95758796,0.0001409,2]
[408295254,1773371440718,-268.34975316,0.0001409,2]
[408295255,1773371440728,-3269.57795169,0.0001409,2]
[408295256,1773371440739,-15485.27263306,0.0001409,2]
[408295258,1773371443325,-2.81034536,0.0001409,2]
[408295259,1773371443337,-2787.08561276,0.0001409,2]
[408295260,1773371443350,-963.91438724,0.0001409,2]
[408295261,1773371443457,-4476.58341871,0.0001409,2]
[408295262,1773371443720,-1389.17228432,0.0001409,2]
[408295269,1773371446299,-8232.4871133,0.0001409,2]
[408295270,1773371446311,-434.81999997,0.0001409,2]
[408295271,1773371446322,-168130.06783031,0.0001409,2]
[408295276,1773371463049,2532.68402055,0.00013549,2]
[408295277,1773371465621,-910.01597945,0.00013549,2]
[408295278,1773371537363,500.0,8.6e-05,2]
[408295279,1773371537859,500.0,8.6e-05,2]
[408295280,1773371543066,500.0,8.6e-05,2]
[408295281,1773371543535,500.0,8.6e-05,2]
[408295282,1773371547362,500.0,8.798e-05,2]
[408295283,1773371547809,500.0,8.798e-05,2]
[408295284,1773371553311,500.0,8.798e-05,2]
[408295285,1773371553403,508.73384177,8.798e-05,2]
[408295286,1773371554840,991.27615823,0.00013574,2]
[408295287,1773371554862,2744.16384177,0.00013574,2]
[408295288,1773371645068,163.0,0.00013798,2]
[408295289,1773371708084,158.0,0.00013798,3]
[408295290,1773371713827,-1716.369,0.00013808,2]
[408295291,1773371713855,-3235.9754,0.00013896,2]
[408295292,1773371713898,-95.3212,0.00013896,2]
[408295293,1773371716896,-3416.60460115,0.00013924,2]
[408295294,1773371716927,-3166.8007977,0.00013924,2]
[408295295,1773371722995,-1200.0,0.00013989,2]
[408295296,1773371723023,-300.0,0.00013989,2]
[408295297,1773371723050,-150.0,0.00013989,2]
[408295298,1773371723078,-500.0,0.00013989,2]
[408295299,1773371723105,-500.0,0.00013989,2]
[408295300,1773371723134,-308.9371591,0.00013989,2]
[408295301,1773371723161,-435.05583302,0.00013989,2]
[408295302,1773371723189,-500.0,0.00013989,2]
[408295303,1773371723215,-500.0,0.00013989,2]
[408295304,1773371723242,-235.80847111,0.00013989,2]
[408295305,1773371723270,-207.89517662,0.00013989,2]
[408295306,1773371723428,-324.6167203,0.00013989,2]
[408295307,1773371749441,500.0,0.00013708,2]
[408295308,1773371838084,500.0,8.799e-05,2]